[Event "Titled Tuesday Blitz July 4 Early 2023"]
[White "Allam, Yara"]
[Black "Sovetbekova, Nurai"]
[WhiteFideId "10615709"]
[BlackFideId "13801910"]
[WhiteElo "2068"]
[BlackElo "2352"]
[Result "0-1"]
[Round "3"]
[TimeControl "180+2"]
[Date "2023.07.04"]
[WhiteClock "0:00:28"]
[BlackClock "0:00:08"]
[Board "230"]

1. e4 {[%clk 0:03:00]}  c5 {[%clk 0:02:59]} 2. Nf3 {[%clk 0:03:00]}  Nc6 {[%clk 0:02:59]} 3. d4 {[%clk 0:03:01]}  cxd4 {[%clk 0:03:00]} 4. Nxd4 {[%clk 0:03:02]}  Nf6 {[%clk 0:03:00]} 5. Nc3 {[%clk 0:03:02]}  e5 {[%clk 0:03:01]} 6. Nb3 {[%clk 0:03:02]}  d6 {[%clk 0:02:57]} 7. f3 {[%clk 0:03:01]}  Be6 {[%clk 0:02:57]} 8. Be3 {[%clk 0:03:01]}  Be7 {[%clk 0:02:54]} 9. Qd2 {[%clk 0:03:01]}  d5 {[%clk 0:02:54]} 10. exd5 {[%clk 0:03:00]}  Nxd5 {[%clk 0:02:55]} 11. Nxd5 {[%clk 0:03:01]}  Qxd5 {[%clk 0:02:55]} 12. Qxd5 {[%clk 0:02:59]}  Bxd5 {[%clk 0:02:55]} 13. O-O-O {[%clk 0:03:00]}  Bxb3 {[%clk 0:02:39]} 14. axb3 {[%clk 0:02:59]}  Rd8 {[%clk 0:02:37]} 15. Bb5 {[%clk 0:02:58]}  a6 {[%clk 0:02:20]} 16. Rxd8+ {[%clk 0:02:53]}  Bxd8 {[%clk 0:02:19]} 17. Bxc6+ {[%clk 0:02:53]}  bxc6 {[%clk 0:02:18]} 18. Bc5 {[%clk 0:02:53]}  Be7 {[%clk 0:02:06]} 19. Bxe7 {[%clk 0:02:44]}  Kxe7 {[%clk 0:02:04]} 20. Re1 {[%clk 0:02:44]}  f6 {[%clk 0:02:02]} 21. Re4 {[%clk 0:02:40]}  Kd6 {[%clk 0:01:52]} 22. Ra4 {[%clk 0:02:39]}  Ra8 {[%clk 0:01:51]} 23. b4 {[%clk 0:02:37]}  Kc7 {[%clk 0:01:47]} 24. c4 {[%clk 0:02:36]}  Kb6 {[%clk 0:01:46]} 25. Kc2 {[%clk 0:02:34]}  Rd8 {[%clk 0:01:43]} 26. Kc3 {[%clk 0:02:31]}  Rd1 {[%clk 0:01:41]} 27. c5+ {[%clk 0:02:14]}  Kb7 {[%clk 0:01:41]} 28. b3 {[%clk 0:02:11]}  Rc1+ {[%clk 0:01:25]} 29. Kd2 {[%clk 0:02:04]}  Rg1 {[%clk 0:01:22]} 30. g4 {[%clk 0:01:56]}  Rg2+ {[%clk 0:01:19]} 31. Ke3 {[%clk 0:01:56]}  Rxh2 {[%clk 0:01:19]} 32. Ra1 {[%clk 0:01:54]}  Rb2 {[%clk 0:01:17]} 33. Rd1 {[%clk 0:01:49]}  Rxb3+ {[%clk 0:01:15]} 34. Kf2 {[%clk 0:01:49]}  Kc7 {[%clk 0:01:11]} 35. Ra1 {[%clk 0:01:48]}  Rxb4 {[%clk 0:01:09]} 36. Rxa6 {[%clk 0:01:48]}  Rb5 {[%clk 0:01:05]} 37. Ra7+ {[%clk 0:01:47]}  Rb7 {[%clk 0:01:05]} 38. Ra2 {[%clk 0:01:42]}  Kd7 {[%clk 0:00:54]} 39. Rd2+ {[%clk 0:01:41]}  Kc7 {[%clk 0:00:44]} 40. Ra2 {[%clk 0:01:38]}  g6 {[%clk 0:00:43]} 41. Ra4 {[%clk 0:01:30]}  Kd7 {[%clk 0:00:36]} 42. Ra6 {[%clk 0:01:22]}  Rc7 {[%clk 0:00:35]} 43. Ra2 {[%clk 0:01:21]}  Ke6 {[%clk 0:00:35]} 44. Rd2 {[%clk 0:01:17]}  Rd7 {[%clk 0:00:34]} 45. Rc2 {[%clk 0:01:15]}  Rd5 {[%clk 0:00:30]} 46. Ke3 {[%clk 0:01:12]}  f5 {[%clk 0:00:29]} 47. Rc4 {[%clk 0:01:07]}  Rd1 {[%clk 0:00:24]} 48. Ke2 {[%clk 0:01:01]}  Rg1 {[%clk 0:00:22]} 49. Ra4 {[%clk 0:00:58]}  Kd5 {[%clk 0:00:19]} 50. Ra5 {[%clk 0:00:54]}  fxg4 {[%clk 0:00:19]} 51. fxg4 {[%clk 0:00:53]}  Rxg4 {[%clk 0:00:19]} 52. Kf3 {[%clk 0:00:51]}  Rc4 {[%clk 0:00:19]} 53. Ra7 {[%clk 0:00:50]}  h5 {[%clk 0:00:19]} 54. Rg7 {[%clk 0:00:49]}  Rf4+ {[%clk 0:00:19]} 55. Ke3 {[%clk 0:00:48]}  Rf6 {[%clk 0:00:19]} 56. Re7 {[%clk 0:00:47]}  Kxc5 {[%clk 0:00:17]} 57. Rxe5+ {[%clk 0:00:47]}  Kd6 {[%clk 0:00:18]} 58. Rg5 {[%clk 0:00:47]}  c5 {[%clk 0:00:17]} 59. Kd3 {[%clk 0:00:47]}  Kc6 {[%clk 0:00:15]} 60. Kc4 {[%clk 0:00:46]}  Rf4+ {[%clk 0:00:14]} 61. Kc3 {[%clk 0:00:45]}  Rg4 {[%clk 0:00:15]} 62. Re5 {[%clk 0:00:43]}  Kd6 {[%clk 0:00:15]} 63. Re2 {[%clk 0:00:43]}  h4 {[%clk 0:00:14]} 64. Rf2 {[%clk 0:00:42]}  g5 {[%clk 0:00:12]} 65. Rd2+ {[%clk 0:00:40]}  Kc6 {[%clk 0:00:12]} 66. Rh2 {[%clk 0:00:40]}  Rf4 {[%clk 0:00:09]} 67. Kd3 {[%clk 0:00:38]}  Kd5 {[%clk 0:00:09]} 68. Kc3 {[%clk 0:00:36]}  Rf3+ {[%clk 0:00:08]} 69. Kc2 {[%clk 0:00:32]}  c4 {[%clk 0:00:08]} 70. Rg2 {[%clk 0:00:31]}  Rg3 {[%clk 0:00:08]} 71. Rd2+ {[%clk 0:00:30]}  Kc5 {[%clk 0:00:08]} 72. Rh2 {[%clk 0:00:30]}  h3 {[%clk 0:00:08]} 73. Rf2 {[%clk 0:00:28]}  Rg2 {[%clk 0:00:08]} 0-1


[Site "https://www.chess.com"]

[Event "Titled Tuesday Blitz July 4 Early 2023"]
[White "Semenova, Alina"]
[Black "TomLiu777"]
[WhiteFideId "24113875"]
[WhiteElo "2062"]
[BlackElo "2346"]
[Result "0-1"]
[Round "3"]
[TimeControl "180+2"]
[Date "2023.07.04"]
[WhiteClock "0:01:14"]
[BlackClock "0:00:54"]
[Board "231"]

1. e4 {[%clk 0:02:49]}  c5 {[%clk 0:02:56]} 2. Nf3 {[%clk 0:02:49]}  d6 {[%clk 0:02:55]} 3. d4 {[%clk 0:02:44]}  cxd4 {[%clk 0:02:56]} 4. Nxd4 {[%clk 0:02:45]}  Nf6 {[%clk 0:02:57]} 5. Nc3 {[%clk 0:02:46]}  a6 {[%clk 0:02:58]} 6. f3 {[%clk 0:02:46]}  e5 {[%clk 0:02:57]} 7. Nb3 {[%clk 0:02:45]}  Be7 {[%clk 0:02:54]} 8. Be3 {[%clk 0:02:40]}  O-O {[%clk 0:02:53]} 9. Qd2 {[%clk 0:02:40]}  Be6 {[%clk 0:02:52]} 10. O-O-O {[%clk 0:02:41]}  b5 {[%clk 0:02:52]} 11. g4 {[%clk 0:02:41]}  Qc7 {[%clk 0:02:42]} 12. g5 {[%clk 0:02:39]}  Nfd7 {[%clk 0:02:40]} 13. Nd5 {[%clk 0:02:35]}  Bxd5 {[%clk 0:02:40]} 14. exd5 {[%clk 0:02:36]}  Nb6 {[%clk 0:02:37]} 15. h4 {[%clk 0:02:30]}  Nc4 {[%clk 0:02:32]} 16. Bxc4 {[%clk 0:02:30]}  bxc4 {[%clk 0:02:33]} 17. Na5 {[%clk 0:02:30]}  Bd8 {[%clk 0:02:19]} 18. Nc6 {[%clk 0:02:19]}  Nxc6 {[%clk 0:02:16]} 19. dxc6 {[%clk 0:02:19]}  Qxc6 {[%clk 0:02:15]} 20. Qxd6 {[%clk 0:02:20]}  Qa4 {[%clk 0:01:30]} 21. Kb1 {[%clk 0:02:03]}  c3 {[%clk 0:01:27]} 22. b3 {[%clk 0:02:03]}  Qb5 {[%clk 0:01:22]} 23. Rd5 {[%clk 0:01:57]}  Qe2 {[%clk 0:01:19]} 24. Rxe5 {[%clk 0:01:53]}  Qxf3 {[%clk 0:01:03]} 25. Bc5 {[%clk 0:01:14]}  Qxh1+ {[%clk 0:00:54]} 0-1


[Site "https://www.chess.com"]

[Event "Titled Tuesday Blitz July 4 Early 2023"]
[White "Vifleemskaia, Svetlana"]
[Black "Guevara Sanchez, Erick Marvin"]
[WhiteFideId "4129490"]
[BlackFideId "6700136"]
[WhiteElo "2336"]
[BlackElo "2048"]
[Result "0-1"]
[Round "3"]
[TimeControl "180+2"]
[Date "2023.07.04"]
[WhiteClock "0:00:46"]
[BlackClock "0:01:17"]
[Board "233"]

1. d4 {[%clk 0:03:00]}  Nf6 {[%clk 0:02:58]} 2. c4 {[%clk 0:03:00]}  e6 {[%clk 0:02:59]} 3. Nc3 {[%clk 0:03:00]}  Bb4 {[%clk 0:02:58]} 4. e3 {[%clk 0:03:00]}  O-O {[%clk 0:02:58]} 5. Ne2 {[%clk 0:03:01]}  b6 {[%clk 0:02:57]} 6. a3 {[%clk 0:03:02]}  Be7 {[%clk 0:02:57]} 7. d5 {[%clk 0:03:02]}  Bb7 {[%clk 0:02:55]} 8. g3 {[%clk 0:03:02]}  exd5 {[%clk 0:02:55]} 9. Bg2 {[%clk 0:03:01]}  Nc6 {[%clk 0:02:51]} 10. cxd5 {[%clk 0:03:01]}  Ne5 {[%clk 0:02:48]} 11. O-O {[%clk 0:02:57]}  d6 {[%clk 0:02:48]} 12. h3 {[%clk 0:02:56]}  Re8 {[%clk 0:02:41]} 13. f4 {[%clk 0:02:55]}  Ned7 {[%clk 0:02:41]} 14. e4 {[%clk 0:02:55]}  Rc8 {[%clk 0:02:38]} 15. Nd4 {[%clk 0:02:50]}  Bf8 {[%clk 0:02:35]} 16. b4 {[%clk 0:02:44]}  g6 {[%clk 0:02:24]} 17. Bb2 {[%clk 0:02:38]}  Bg7 {[%clk 0:02:22]} 18. Rc1 {[%clk 0:02:37]}  Nb8 {[%clk 0:02:14]} 19. Re1 {[%clk 0:02:23]}  c6 {[%clk 0:02:13]} 20. dxc6 {[%clk 0:02:15]}  Nxc6 {[%clk 0:02:12]} 21. Ndb5 {[%clk 0:02:13]}  Re6 {[%clk 0:01:38]} 22. Kh2 {[%clk 0:02:07]}  a6 {[%clk 0:01:37]} 23. Nd4 {[%clk 0:02:05]}  Nxd4 {[%clk 0:01:37]} 24. Qxd4 {[%clk 0:02:03]}  Ng4+ {[%clk 0:01:37]} 25. hxg4 {[%clk 0:02:02]}  Bxd4 {[%clk 0:01:38]} 26. Red1 {[%clk 0:01:58]}  Bg7 {[%clk 0:01:36]} 27. Re1 {[%clk 0:01:52]}  Re7 {[%clk 0:01:35]} 28. Red1 {[%clk 0:01:41]}  Rec7 {[%clk 0:01:34]} 29. Nd5 {[%clk 0:01:31]}  Bxd5 {[%clk 0:01:33]} 30. Rxc7 {[%clk 0:01:30]}  Rxc7 {[%clk 0:01:33]} 31. Bxg7 {[%clk 0:01:29]}  Kxg7 {[%clk 0:01:33]} 32. Rxd5 {[%clk 0:01:29]}  Rc2 {[%clk 0:01:33]} 33. e5 {[%clk 0:01:28]}  Qa8 {[%clk 0:01:30]} 34. Kh3 {[%clk 0:01:22]}  Rxg2 {[%clk 0:01:29]} 35. Rxd6 {[%clk 0:01:20]}  Rd2 {[%clk 0:01:27]} 36. Rxd2 {[%clk 0:01:19]}  Qh1+ {[%clk 0:01:27]} 37. Rh2 {[%clk 0:01:19]}  Qf1+ {[%clk 0:01:28]} 38. Kh4 {[%clk 0:01:15]}  h6 {[%clk 0:01:25]} 39. g5 {[%clk 0:01:14]}  h5 {[%clk 0:01:24]} 40. a4 {[%clk 0:00:58]}  Qd1 {[%clk 0:01:22]} 41. Kh3 {[%clk 0:00:58]}  Qxa4 {[%clk 0:01:21]} 42. Kg2 {[%clk 0:00:52]}  Qxb4 {[%clk 0:01:20]} 43. Kf3 {[%clk 0:00:52]}  Qc3+ {[%clk 0:01:19]} 44. Ke4 {[%clk 0:00:50]}  Qc4+ {[%clk 0:01:19]} 45. Kf3 {[%clk 0:00:48]}  Qd3+ {[%clk 0:01:18]} 46. Kg2 {[%clk 0:00:47]}  a5 {[%clk 0:01:18]} 47. Rh1 {[%clk 0:00:47]}  Qe4+ {[%clk 0:01:17]} 48. Kh2 {[%clk 0:00:46]}  Qxh1+ {[%clk 0:01:17]} 49. Kxh1 {[%clk 0:00:46]}  a4 {[%clk 0:01:17]} 0-1


[Site "https://www.chess.com"]

[Event "Titled Tuesday Blitz July 4 Early 2023"]
[White "ilya2700"]
[Black "Chyngyz, Sultai"]
[BlackFideId "13803158"]
[WhiteElo "2030"]
[BlackElo "2331"]
[Result "0-1"]
[Round "3"]
[TimeControl "180+2"]
[Date "2023.07.04"]
[WhiteClock "0:00:02"]
[BlackClock "0:01:28"]
[Board "235"]

1. e4 {[%clk 0:03:00]}  c5 {[%clk 0:02:43]} 2. c4 {[%clk 0:02:59]}  d6 {[%clk 0:02:42]} 3. Ne2 {[%clk 0:03:00]}  e5 {[%clk 0:02:41]} 4. d3 {[%clk 0:02:59]}  Nc6 {[%clk 0:02:41]} 5. Nbc3 {[%clk 0:03:00]}  g6 {[%clk 0:02:41]} 6. g3 {[%clk 0:03:01]}  Bg7 {[%clk 0:02:42]} 7. Bg2 {[%clk 0:03:02]}  h5 {[%clk 0:02:42]} 8. O-O {[%clk 0:03:02]}  h4 {[%clk 0:02:43]} 9. Nd5 {[%clk 0:02:50]}  h3 {[%clk 0:02:39]} 10. Bh1 {[%clk 0:02:49]}  Be6 {[%clk 0:02:35]} 11. f4 {[%clk 0:02:48]}  Bxd5 {[%clk 0:02:34]} 12. cxd5 {[%clk 0:02:49]}  Nd4 {[%clk 0:02:35]} 13. Nxd4 {[%clk 0:02:49]}  cxd4 {[%clk 0:02:36]} 14. fxe5 {[%clk 0:02:45]}  Bxe5 {[%clk 0:02:37]} 15. Qf3 {[%clk 0:02:36]}  Qd7 {[%clk 0:02:36]} 16. Bf4 {[%clk 0:02:34]}  Bxf4 {[%clk 0:02:35]} 17. Qxf4 {[%clk 0:02:35]}  f6 {[%clk 0:02:31]} 18. Rac1 {[%clk 0:02:29]}  Kf7 {[%clk 0:02:30]} 19. e5 {[%clk 0:02:21]}  dxe5 {[%clk 0:02:30]} 20. Qxe5 {[%clk 0:02:22]}  Kg7 {[%clk 0:02:14]} 21. Qxd4 {[%clk 0:02:18]}  Rh5 {[%clk 0:02:09]} 22. d6 {[%clk 0:02:13]}  Kh8 {[%clk 0:02:03]} 23. Rc7 {[%clk 0:02:06]}  Qe6 {[%clk 0:01:45]} 24. Rxb7 {[%clk 0:01:31]}  Rd8 {[%clk 0:01:43]} 25. d7 {[%clk 0:01:08]}  Re5 {[%clk 0:01:37]} 26. Rxa7 {[%clk 0:01:01]}  Kg7 {[%clk 0:01:37]} 27. Be4 {[%clk 0:00:45]}  Ne7 {[%clk 0:01:36]} 28. Rb7 {[%clk 0:00:31]}  Nc6 {[%clk 0:01:33]} 29. Bxc6 {[%clk 0:00:29]}  Qxc6 {[%clk 0:01:33]} 30. Qf2 {[%clk 0:00:19]}  Rf5 {[%clk 0:01:32]} 31. Qe2 {[%clk 0:00:15]}  Rxf1+ {[%clk 0:01:31]} 32. Kxf1 {[%clk 0:00:15]}  Qh1+ {[%clk 0:01:31]} 33. Kf2 {[%clk 0:00:16]}  Qxh2+ {[%clk 0:01:27]} 34. Kf3 {[%clk 0:00:15]}  Qh1+ {[%clk 0:01:27]} 35. Kg4 {[%clk 0:00:12]}  f5+ {[%clk 0:01:27]} 36. Kg5 {[%clk 0:00:11]}  Qc1+ {[%clk 0:01:27]} 37. Kh4 {[%clk 0:00:02]}  Qh6+ {[%clk 0:01:28]} 0-1


[Site "https://www.chess.com"]

[Event "Titled Tuesday Blitz July 4 Early 2023"]
[White "Nguyen, Ngoc Truong Son"]
[Black "So, Wesley"]
[WhiteFideId "12401110"]
[BlackFideId "5202213"]
[WhiteElo "2903"]
[BlackElo "3097"]
[Result "1-0"]
[Round "4"]
[TimeControl "180+2"]
[Date "2023.07.04"]
[WhiteClock "0:00:08"]
[BlackClock "0:00:05"]
[Board "1"]

1. e4 {[%clk 0:03:00]}  e5 {[%clk 0:02:56]} 2. Nf3 {[%clk 0:03:00]}  Nc6 {[%clk 0:02:57]} 3. Bc4 {[%clk 0:03:00]}  Nf6 {[%clk 0:02:55]} 4. Ng5 {[%clk 0:02:52]}  d5 {[%clk 0:02:55]} 5. exd5 {[%clk 0:02:53]}  Na5 {[%clk 0:02:56]} 6. Bb5+ {[%clk 0:02:53]}  c6 {[%clk 0:02:56]} 7. dxc6 {[%clk 0:02:53]}  bxc6 {[%clk 0:02:57]} 8. Bd3 {[%clk 0:02:46]}  Nd5 {[%clk 0:02:56]} 9. Nf3 {[%clk 0:02:40]}  Bd6 {[%clk 0:02:56]} 10. O-O {[%clk 0:02:36]}  O-O {[%clk 0:02:55]} 11. Re1 {[%clk 0:02:34]}  f5 {[%clk 0:02:55]} 12. Nxe5 {[%clk 0:02:24]}  Qf6 {[%clk 0:02:55]} 13. Nf3 {[%clk 0:02:15]}  g5 {[%clk 0:02:54]} 14. c4 {[%clk 0:01:42]}  Nf4 {[%clk 0:02:54]} 15. Bf1 {[%clk 0:01:42]}  g4 {[%clk 0:02:54]} 16. d4 {[%clk 0:01:37]}  gxf3 {[%clk 0:02:54]} 17. Qxf3 {[%clk 0:01:36]}  Ne6 {[%clk 0:02:54]} 18. c5 {[%clk 0:01:31]}  Bc7 {[%clk 0:02:52]} 19. b4 {[%clk 0:01:23]}  Nxd4 {[%clk 0:02:04]} 20. Qc3 {[%clk 0:01:21]}  f4 {[%clk 0:02:04]} 21. Bb2 {[%clk 0:01:16]}  Rd8 {[%clk 0:01:56]} 22. Nd2 {[%clk 0:01:12]}  f3 {[%clk 0:01:47]} 23. bxa5 {[%clk 0:00:38]}  fxg2 {[%clk 0:01:30]} 24. Bc4+ {[%clk 0:00:36]}  Kf8 {[%clk 0:01:22]} 25. Re3 {[%clk 0:00:18]}  Be5 {[%clk 0:00:42]} 26. Rae1 {[%clk 0:00:10]}  Ne2+ {[%clk 0:00:20]} 27. R1xe2 {[%clk 0:00:10]}  Bxc3 {[%clk 0:00:20]} 28. Bxc3 {[%clk 0:00:11]}  Qg6 {[%clk 0:00:17]} 29. Rf3+ {[%clk 0:00:10]}  Bf5 {[%clk 0:00:17]} 30. Re5 {[%clk 0:00:10]}  Rxd2 {[%clk 0:00:08]} 31. Rfxf5+ {[%clk 0:00:09]}  Kg7 {[%clk 0:00:08]} 32. Re6+ {[%clk 0:00:09]}  Kh6 {[%clk 0:00:08]} 33. Rxg6+ {[%clk 0:00:09]}  hxg6 {[%clk 0:00:05]} 34. Bxd2+ {[%clk 0:00:08]} 1-0


[Site "https://www.chess.com"]

[Event "Titled Tuesday Blitz July 4 Early 2023"]
[White "Kovalenko, Igor"]
[Black "Lazavik, Denis"]
[WhiteFideId "14117908"]
[BlackFideId "13515110"]
[WhiteElo "2877"]
[BlackElo "3055"]
[Result "1/2-1/2"]
[Round "4"]
[TimeControl "180+2"]
[Date "2023.07.04"]
[WhiteClock "0:00:19"]
[BlackClock "0:00:05"]
[Board "3"]

1. c4 {[%clk 0:02:56]}  Nf6 {[%clk 0:02:59]} 2. Nc3 {[%clk 0:02:55]}  e5 {[%clk 0:02:59]} 3. Nf3 {[%clk 0:02:55]}  Nc6 {[%clk 0:02:59]} 4. g3 {[%clk 0:02:54]}  d5 {[%clk 0:02:59]} 5. cxd5 {[%clk 0:02:55]}  Nxd5 {[%clk 0:03:00]} 6. Bg2 {[%clk 0:02:56]}  Bc5 {[%clk 0:03:01]} 7. O-O {[%clk 0:02:56]}  O-O {[%clk 0:03:01]} 8. d3 {[%clk 0:02:56]}  h6 {[%clk 0:03:01]} 9. Bd2 {[%clk 0:02:56]}  Nf6 {[%clk 0:03:01]} 10. Rc1 {[%clk 0:02:57]}  Re8 {[%clk 0:02:57]} 11. a3 {[%clk 0:02:56]}  a5 {[%clk 0:02:56]} 12. Ne4 {[%clk 0:02:53]}  Nxe4 {[%clk 0:02:47]} 13. dxe4 {[%clk 0:02:54]}  Bb6 {[%clk 0:02:47]} 14. e3 {[%clk 0:02:54]}  Be6 {[%clk 0:02:40]} 15. Bc3 {[%clk 0:02:53]}  Qxd1 {[%clk 0:02:35]} 16. Rfxd1 {[%clk 0:02:54]}  f6 {[%clk 0:02:36]} 17. Nd2 {[%clk 0:02:49]}  Red8 {[%clk 0:02:29]} 18. Bf1 {[%clk 0:02:50]}  Kf7 {[%clk 0:02:25]} 19. Kg2 {[%clk 0:02:46]}  a4 {[%clk 0:02:24]} 20. Bb5 {[%clk 0:02:42]}  Ne7 {[%clk 0:02:18]} 21. Nc4 {[%clk 0:02:27]}  Rxd1 {[%clk 0:02:13]} 22. Rxd1 {[%clk 0:02:28]}  Bc5 {[%clk 0:02:12]} 23. Nd2 {[%clk 0:02:27]}  c6 {[%clk 0:02:12]} 24. Be2 {[%clk 0:02:25]}  b5 {[%clk 0:02:11]} 25. Rc1 {[%clk 0:02:25]}  Bd6 {[%clk 0:02:10]} 26. f4 {[%clk 0:02:24]}  Rb8 {[%clk 0:01:58]} 27. Nf3 {[%clk 0:02:22]}  b4 {[%clk 0:01:45]} 28. axb4 {[%clk 0:02:22]}  Bxb4 {[%clk 0:01:45]} 29. f5 {[%clk 0:01:41]}  Ba2 {[%clk 0:01:22]} 30. Ra1 {[%clk 0:00:42]}  Bxc3 {[%clk 0:01:20]} 31. bxc3 {[%clk 0:00:43]}  Rb2 {[%clk 0:01:20]} 32. Kf1 {[%clk 0:00:43]}  Rb1+ {[%clk 0:00:58]} 33. Rxb1 {[%clk 0:00:43]}  Bxb1 {[%clk 0:00:59]} 34. Bc4+ {[%clk 0:00:40]}  Ke8 {[%clk 0:00:57]} 35. Nd2 {[%clk 0:00:40]}  Bc2 {[%clk 0:00:57]} 36. Ke2 {[%clk 0:00:39]}  Nc8 {[%clk 0:00:45]} 37. Bd3 {[%clk 0:00:38]}  Bb3 {[%clk 0:00:29]} 38. Bc4 {[%clk 0:00:19]}  Bc2 {[%clk 0:00:12]} 39. Bd3 {[%clk 0:00:19]}  Bb3 {[%clk 0:00:04]} 40. Bc4 {[%clk 0:00:19]}  Bc2 {[%clk 0:00:05]} 1/2-1/2


[Site "https://www.chess.com"]

[Event "Titled Tuesday Blitz July 4 Early 2023"]
[White "Mamedov, Rauf"]
[Black "Samadov, Read"]
[WhiteFideId "13401653"]
[BlackFideId "13417444"]
[WhiteElo "3035"]
[BlackElo "2857"]
[Result "1-0"]
[Round "4"]
[TimeControl "180+2"]
[Date "2023.07.04"]
[WhiteClock "0:00:45"]
[BlackClock "0:00:00"]
[Board "6"]

1. e4 {[%clk 0:03:00]}  c5 {[%clk 0:03:00]} 2. Nf3 {[%clk 0:03:00]}  d6 {[%clk 0:03:00]} 3. Nc3 {[%clk 0:03:00]}  Nf6 {[%clk 0:03:01]} 4. g3 {[%clk 0:03:00]}  g6 {[%clk 0:02:57]} 5. Bg2 {[%clk 0:03:00]}  Nc6 {[%clk 0:02:56]} 6. O-O {[%clk 0:03:00]}  Bg7 {[%clk 0:02:56]} 7. d3 {[%clk 0:03:00]}  O-O {[%clk 0:02:55]} 8. Re1 {[%clk 0:03:01]}  a6 {[%clk 0:02:49]} 9. a4 {[%clk 0:03:00]}  Bg4 {[%clk 0:02:44]} 10. h3 {[%clk 0:03:00]}  Bxf3 {[%clk 0:02:45]} 11. Bxf3 {[%clk 0:03:01]}  Rb8 {[%clk 0:02:45]} 12. Bg2 {[%clk 0:03:01]}  Nd7 {[%clk 0:02:43]} 13. Ne2 {[%clk 0:03:01]}  Qc7 {[%clk 0:02:33]} 14. c3 {[%clk 0:02:59]}  b5 {[%clk 0:02:32]} 15. axb5 {[%clk 0:02:59]}  axb5 {[%clk 0:02:33]} 16. Be3 {[%clk 0:02:57]}  b4 {[%clk 0:02:32]} 17. d4 {[%clk 0:02:54]}  bxc3 {[%clk 0:02:30]} 18. bxc3 {[%clk 0:02:54]}  cxd4 {[%clk 0:02:29]} 19. cxd4 {[%clk 0:02:55]}  Nb4 {[%clk 0:02:22]} 20. Rc1 {[%clk 0:02:50]}  Qa5 {[%clk 0:02:19]} 21. Qd2 {[%clk 0:02:50]}  Qb5 {[%clk 0:02:15]} 22. Rb1 {[%clk 0:02:45]}  Qa5 {[%clk 0:01:54]} 23. Ra1 {[%clk 0:02:27]}  Qd8 {[%clk 0:01:03]} 24. Reb1 {[%clk 0:02:20]}  Nc6 {[%clk 0:01:03]} 25. Rc1 {[%clk 0:02:18]}  Rc8 {[%clk 0:01:00]} 26. e5 {[%clk 0:02:14]}  Ncxe5 {[%clk 0:00:54]} 27. dxe5 {[%clk 0:02:14]}  Nxe5 {[%clk 0:00:55]} 28. Rxc8 {[%clk 0:02:12]}  Qxc8 {[%clk 0:00:56]} 29. Rc1 {[%clk 0:02:11]}  Qa6 {[%clk 0:00:54]} 30. Nf4 {[%clk 0:02:04]}  Rc8 {[%clk 0:00:51]} 31. Rxc8+ {[%clk 0:01:51]}  Qxc8 {[%clk 0:00:52]} 32. Nd5 {[%clk 0:01:50]}  Kf8 {[%clk 0:00:51]} 33. Bg5 {[%clk 0:01:45]}  f6 {[%clk 0:00:46]} 34. Bh6 {[%clk 0:01:40]}  Qe6 {[%clk 0:00:35]} 35. Nf4 {[%clk 0:01:32]}  Qb3 {[%clk 0:00:29]} 36. Bxg7+ {[%clk 0:01:20]}  Kxg7 {[%clk 0:00:30]} 37. Nd5 {[%clk 0:01:11]}  Kf7 {[%clk 0:00:19]} 38. Ne3 {[%clk 0:01:06]}  Qb1+ {[%clk 0:00:17]} 39. Kh2 {[%clk 0:01:06]}  Kg7 {[%clk 0:00:15]} 40. Qe2 {[%clk 0:01:02]}  Qb8 {[%clk 0:00:12]} 41. Nd5 {[%clk 0:01:00]}  Qd8 {[%clk 0:00:10]} 42. f4 {[%clk 0:00:59]}  Nc6 {[%clk 0:00:10]} 43. Qe6 {[%clk 0:00:59]}  Qf8 {[%clk 0:00:06]} 44. Qd7 {[%clk 0:00:55]}  Nb8 {[%clk 0:00:04]} 45. Qb7 {[%clk 0:00:54]}  Kf7 {[%clk 0:00:04]} 46. Nc7 {[%clk 0:00:45]}  Nd7 {[%clk 0:00:00]} 47. Bd5+ {[%clk 0:00:45]} 1-0


[Site "https://www.chess.com"]

[Event "Titled Tuesday Blitz July 4 Early 2023"]
[White "Kosakowski, Jakub"]
[Black "Madaminov, Mukhiddin"]
[WhiteFideId "1185080"]
[BlackFideId "14210703"]
[WhiteElo "2845"]
[BlackElo "3034"]
[Result "1-0"]
[Round "4"]
[TimeControl "180+2"]
[Date "2023.07.04"]
[WhiteClock "0:00:14"]
[BlackClock "0:00:03"]
[Board "7"]

1. e4 {[%clk 0:02:58]}  c5 {[%clk 0:03:00]} 2. Nf3 {[%clk 0:02:58]}  d6 {[%clk 0:03:01]} 3. d4 {[%clk 0:02:57]}  cxd4 {[%clk 0:03:01]} 4. Nxd4 {[%clk 0:02:58]}  Nf6 {[%clk 0:03:02]} 5. Nc3 {[%clk 0:02:59]}  Nc6 {[%clk 0:03:03]} 6. Bg5 {[%clk 0:02:58]}  e6 {[%clk 0:03:03]} 7. Qd3 {[%clk 0:02:57]}  a6 {[%clk 0:03:03]} 8. Nxc6 {[%clk 0:02:57]}  bxc6 {[%clk 0:03:03]} 9. O-O-O {[%clk 0:02:57]}  Qa5 {[%clk 0:02:59]} 10. Qg3 {[%clk 0:02:53]}  h6 {[%clk 0:02:51]} 11. Bd2 {[%clk 0:02:51]}  e5 {[%clk 0:02:43]} 12. f4 {[%clk 0:02:44]}  Nh5 {[%clk 0:02:38]} 13. Qf3 {[%clk 0:02:35]}  Nxf4 {[%clk 0:02:38]} 14. Bc4 {[%clk 0:02:33]}  Be6 {[%clk 0:02:33]} 15. Nd5 {[%clk 0:01:46]}  Qd8 {[%clk 0:02:25]} 16. Bxf4 {[%clk 0:01:43]}  exf4 {[%clk 0:02:25]} 17. Rhe1 {[%clk 0:01:43]}  Rc8 {[%clk 0:02:02]} 18. Qxf4 {[%clk 0:01:32]}  Qg5 {[%clk 0:01:44]} 19. Qxg5 {[%clk 0:01:20]}  hxg5 {[%clk 0:01:45]} 20. Bxa6 {[%clk 0:01:20]}  Rb8 {[%clk 0:01:20]} 21. Nc7+ {[%clk 0:01:15]}  Kd7 {[%clk 0:01:19]} 22. Nxe6 {[%clk 0:01:15]}  fxe6 {[%clk 0:01:20]} 23. h3 {[%clk 0:01:15]}  Be7 {[%clk 0:01:20]} 24. Bc4 {[%clk 0:01:13]}  Ra8 {[%clk 0:01:13]} 25. Rf1 {[%clk 0:01:11]}  Bf6 {[%clk 0:01:13]} 26. e5 {[%clk 0:01:09]}  Bxe5 {[%clk 0:01:10]} 27. Rf7+ {[%clk 0:01:09]}  Ke8 {[%clk 0:01:09]} 28. Bxe6 {[%clk 0:01:09]}  d5 {[%clk 0:01:03]} 29. Re1 {[%clk 0:01:03]}  Bg3 {[%clk 0:00:42]} 30. Re2 {[%clk 0:00:59]}  Bf4+ {[%clk 0:00:20]} 31. Kb1 {[%clk 0:00:58]}  d4 {[%clk 0:00:21]} 32. Rxg7 {[%clk 0:00:42]}  Be3 {[%clk 0:00:19]} 33. Bb3 {[%clk 0:00:39]}  Rf8 {[%clk 0:00:18]} 34. a4 {[%clk 0:00:37]}  c5 {[%clk 0:00:16]} 35. Rxg5 {[%clk 0:00:35]}  c4 {[%clk 0:00:15]} 36. Bxc4 {[%clk 0:00:31]}  Kd8 {[%clk 0:00:11]} 37. Rd5+ {[%clk 0:00:28]}  Kc7 {[%clk 0:00:12]} 38. Bb5 {[%clk 0:00:28]}  Kb6 {[%clk 0:00:12]} 39. Ka2 {[%clk 0:00:27]}  Rfc8 {[%clk 0:00:03]} 40. c3 {[%clk 0:00:24]}  dxc3 {[%clk 0:00:02]} 41. Rxe3 {[%clk 0:00:13]}  c2 {[%clk 0:00:03]} 42. Re6+ {[%clk 0:00:13]}  Kb7 {[%clk 0:00:04]} 43. Rd7+ {[%clk 0:00:11]}  Rc7 {[%clk 0:00:02]} 44. Rxc7+ {[%clk 0:00:11]}  Kxc7 {[%clk 0:00:03]} 45. Rc6+ {[%clk 0:00:12]}  Kb7 {[%clk 0:00:03]} 46. Rxc2 {[%clk 0:00:13]}  Kb6 {[%clk 0:00:04]} 47. Rc6+ {[%clk 0:00:13]}  Kb7 {[%clk 0:00:03]} 48. Ra6 {[%clk 0:00:13]}  Rd8 {[%clk 0:00:03]} 49. Rf6 {[%clk 0:00:13]}  Rd4 {[%clk 0:00:03]} 50. g4 {[%clk 0:00:12]}  Kc7 {[%clk 0:00:02]} 51. g5 {[%clk 0:00:12]}  Rd2 {[%clk 0:00:02]} 52. g6 {[%clk 0:00:12]}  Rg2 {[%clk 0:00:03]} 53. h4 {[%clk 0:00:13]}  Kb7 {[%clk 0:00:03]} 54. h5 {[%clk 0:00:13]}  Rg5 {[%clk 0:00:03]} 55. h6 {[%clk 0:00:13]}  Kc7 {[%clk 0:00:04]} 56. h7 {[%clk 0:00:13]}  Rh5 {[%clk 0:00:04]} 57. g7 {[%clk 0:00:13]}  Rxh7 {[%clk 0:00:04]} 58. g8=Q {[%clk 0:00:14]}  Rh4 {[%clk 0:00:03]} 59. Qg7+ {[%clk 0:00:14]} 1-0


[Site "https://www.chess.com"]